Workbook

Sheet Function
A1: x | B1: Square | G1: 1
A2: 1 | B2: =3*Square(A2+1) -> 12 | G2: 2
A3: 2 | B3: =2*Square(A3+1) -> 18 | G3: 3
A4: 3 | B4: =2*Square(A4+1) -> 32 | G4: 4
A7: x1 | B7: y1 | C7: x2 | D7: y2 | E7: Distance
A8: 0 | B8: 0 | C8: 1 | D8: 1 | E8: =Distance(A8,B8,C8,D8) -> 1.414213562
A14: 1 | B14: 2 | C14: 3 | D14: 4 | E14: 5 | F14: 6 | G14: 7 | H14: 8 | I14: 9 | J14: 10
A16: Sum
A17: =SUM(A14:J14) -> 55
A20: 10 | B20: 5 | C20: 4 | D20: 1 | E20: 2 | F20: 8 | G20: 6 | H20: 9 | I20: 7 | J20: 3
A22: N | B22: Top | C22: Bottom | D22: Middle
A23: 1 | B23: =TopSUM($A$20:$J$20,A23) -> 10 | C23: =BottomSum($A$20:$J$20,A23) -> 1 | D23: =SumMiddle($A$20:$J$20,A23) -> 44
A24: 2 | B24: =TopSUM($A$20:$J$20,A24) -> 19 | C24: =BottomSum($A$20:$J$20,A24) -> 3 | D24: =SumMiddle($A$20:$J$20,A24) -> 33
A25: 3 | B25: 27 | C25: 6 | D25: 22
A26: 4 | B26: 34 | C26: 10 | D26: 11
A27: 10 | B27: 55 | C27: 55
A30: First | B30: Last | C30: Sum
A31: C14 | B31: E14 | C31: =MySum2(A31&":"&B31) -> 12
C32: =MySum2("A20:E20") -> 22

Sheet Cannon Shell
A1: Constants
A2: dT | B2: =0.5 -> 0.5 | C2: secs
A3: Gravity | B3: =32.17 -> 32.17 | C3: ft/sec/sec | G3: Label | H3: ="Trajectory:"&B10&"@"&B7&"°" -> Trajectory:1214@13.1°
A5: Inputs
A6: Angle | B6: 131 | E6: [0,90]
A7: (degrees) | B7: =B6/10 -> 13.1 | E7: Step= .1
A9: Speed | B9: 1214 | E9: [0, 2000]
A10: (ft/sec) | B10: =B9 -> 1214 | E10: Step = 1
A12: Target X | B12: 10000
A13: Target Y | B13: 2000
A15: Time | B15: X(Time) | C15: Y(Time)
A16: =0 -> 0 | B16: =0 -> 0 | C16: =0 -> 0
A17: =$B$2+A16 -> 0.5 | B17: =IF( C17<0,B16, NewX(B16,$B$10,$B$7,$B$2) ) -> 591.2034121 | C17: =IF(C16<0,-1,NewY(C16,$B$10,$B$7,$B$3,A17,$B$2) ) -> 129.5348436
A18: 1 | B18: =IF( C18<0,B17, NewX(B17,$B$10,$B$7,$B$2) ) -> 1182.406824 | C18: =IF(C17<0,-1,NewY(C17,$B$10,$B$7,$B$3,A18,$B$2) ) -> 251.0271872
A19: 1.5 | B19: 1773.610236 | C19: 364.4770308
A20: 2 | B20: 2364.813649 | C20: 469.8843745
A21: 2.5 | B21: 2956.017061 | C21: 567.2492181
A22: 3 | B22: 3547.220473 | C22: 656.5715617
A23: 3.5 | B23: 4138.423885 | C23: 737.8514053
A24: 4 | B24: 4729.627297 | C24: 811.0887489
A25: 4.5 | B25: 5320.830709 | C25: 876.2835925
A26: 5 | B26: 5912.034121 | C26: 933.4359361
A27: 5.5 | B27: 6503.237534 | C27: 982.5457798
A28: 6 | B28: 7094.440946 | C28: 1023.613123
A29: 6.5 | B29: 7685.644358 | C29: 1056.637967
A30: 7 | B30: 8276.84777 | C30: 1081.620311
A31: 7.5 | B31: 8868.051182 | C31: 1098.560154
A32: 8 | B32: 9459.254594 | C32: 1107.457498
A33: 8.5 | B33: 10050.45801 | C33: 1108.312341 | L33: 3 | N33: =COUNTIF(L36:L40,IF(L33>=2,TRUE,FALSE)) -> 0
A34: 9 | B34: 10641.66142 | C34: 1101.124685
A35: 9.5 | B35: 11232.86483 | C35: 1085.894529
A36: 10 | B36: 11824.06824 | C36: 1062.621872 | L36: 1
A37: 10.5 | B37: 12415.27165 | C37: 1031.306716 | L37: 2
A38: 11 | B38: 13006.47507 | C38: 991.9490595 | L38: 3
A39: 11.5 | B39: 13597.67848 | C39: 944.5489031 | L39: 4
A40: 12 | B40: 14188.88189 | C40: 889.1062467 | L40: 5
A41: 12.5 | B41: 14780.0853 | C41: 825.6210904
A42: 13 | B42: 15371.28872 | C42: 754.093434
A43: 13.5 | B43: 15962.49213 | C43: 674.5232776
A44: 14 | B44: 16553.69554 | C44: 586.9106212
A45: 14.5 | B45: 17144.89895 | C45: 491.2554648
A46: 15 | B46: 17736.10236 | C46: 387.5578084
A47: 15.5 | B47: 18327.30578 | C47: 275.817652
A48: 16 | B48: 18918.50919 | C48: 156.0349957
A49: 16.5 | B49: 19509.7126 | C49: 28.20983927
A50: 17 | B50: 19509.7126 | C50: -107.6578171
A51: 17.5 | B51: 19509.7126 | C51: -1
A52: 18 | B52: 19509.7126 | C52: -1
A53: 18.5 | B53: 19509.7126 | C53: -1 | E53: What is the minimum speed for a cannon shell to reach the target,
A54: 19 | B54: 19509.7126 | C54: -1 | E54: and what is the angle to shoot the cannon at that speed.
A55: 19.5 | B55: 19509.7126 | C55: -1
A56: 20 | B56: 19509.7126 | C56: -1
A57: 20.5 | B57: 19509.7126 | C57: -1
A58: 21 | B58: 19509.7126 | C58: -1
A59: 21.5 | B59: 19509.7126 | C59: -1
A60: 22 | B60: 19509.7126 | C60: -1
A61: 22.5 | B61: 19509.7126 | C61: -1
A62: 23 | B62: 19509.7126 | C62: -1
A63: 23.5 | B63: 19509.7126 | C63: -1
A64: 24 | B64: 19509.7126 | C64: -1
A65: 24.5 | B65: 19509.7126 | C65: -1
A66: 25 | B66: 19509.7126 | C66: -1
A67: 25.5 | B67: 19509.7126 | C67: -1
A68: 26 | B68: 19509.7126 | C68: -1
A69: 26.5 | B69: 19509.7126 | C69: -1
A70: 27 | B70: 19509.7126 | C70: -1
A71: 27.5 | B71: 19509.7126 | C71: -1
A72: 28 | B72: 19509.7126 | C72: -1
A73: 28.5 | B73: 19509.7126 | C73: -1
A74: 29 | B74: 19509.7126 | C74: -1
A75: 29.5 | B75: 19509.7126 | C75: -1
A76: 30 | B76: 19509.7126 | C76: -1
A77: 30.5 | B77: 19509.7126 | C77: -1
A78: 31 | B78: 19509.7126 | C78: -1
A79: 31.5 | B79: 19509.7126 | C79: -1
A80: 32 | B80: 19509.7126 | C80: -1
A81: =$B$2+A80 -> 32.5 | B81: 19509.7126 | C81: -1
A82: 33 | B82: =IF( C82<0,B81, NewX(B81,$B$10,$B$7,$B$2) ) -> 19509.7126 | C82: =IF(C81<0,-1,NewY(C81,$B$10,$B$7,$B$3,A82,$B$2) ) -> -1
A83: 33.5 | B83: 19509.7126 | C83: -1
A84: 34 | B84: 19509.7126 | C84: -1
A85: 34.5 | B85: 19509.7126 | C85: -1
A86: 35 | B86: 19509.7126 | C86: -1
A87: 35.5 | B87: 19509.7126 | C87: -1
A88: 36 | B88: 19509.7126 | C88: -1
A89: 36.5 | B89: 19509.7126 | C89: -1
A90: 37 | B90: 19509.7126 | C90: -1
A91: 37.5 | B91: 19509.7126 | C91: -1
A92: 38 | B92: 19509.7126 | C92: -1
A93: 38.5 | B93: 19509.7126 | C93: -1
A94: 39 | B94: 19509.7126 | C94: -1
A95: 39.5 | B95: 19509.7126 | C95: -1
A96: 40 | B96: 19509.7126 | C96: -1
A97: 40.5 | B97: 19509.7126 | C97: -1
A98: 41 | B98: 19509.7126 | C98: -1
A99: 41.5 | B99: 19509.7126 | C99: -1
A100: 42 | B100: 19509.7126 | C100: -1
A101: 42.5 | B101: 19509.7126 | C101: -1
A102: 43 | B102: 19509.7126 | C102: -1
A103: 43.5 | B103: 19509.7126 | C103: -1
A104: 44 | B104: 19509.7126 | C104: -1
A105: 44.5 | B105: 19509.7126 | C105: -1
A106: 45 | B106: 19509.7126 | C106: -1
A107: 45.5 | B107: 19509.7126 | C107: -1
A108: 46 | B108: 19509.7126 | C108: -1
A109: 46.5 | B109: 19509.7126 | C109: -1
A110: 47 | B110: 19509.7126 | C110: -1
A111: 47.5 | B111: 19509.7126 | C111: -1
A112: 48 | B112: 19509.7126 | C112: -1
A113: 48.5 | B113: 19509.7126 | C113: -1
A114: 49 | B114: 19509.7126 | C114: -1
A115: 49.5 | B115: 19509.7126 | C115: -1
A116: 50 | B116: 19509.7126 | C116: -1
A117: 50.5 | B117: 19509.7126 | C117: -1
A118: 51 | B118: 19509.7126 | C118: -1
A119: 51.5 | B119: 19509.7126 | C119: -1
A120: 52 | B120: 19509.7126 | C120: -1
A121: 52.5 | B121: 19509.7126 | C121: -1
A122: 53 | B122: 19509.7126 | C122: -1
A123: 53.5 | B123: 19509.7126 | C123: -1
A124: 54 | B124: 19509.7126 | C124: -1
A125: 54.5 | B125: 19509.7126 | C125: -1
A126: 55 | B126: 19509.7126 | C126: -1
A127: 55.5 | B127: 19509.7126 | C127: -1
A128: 56 | B128: 19509.7126 | C128: -1
A129: 56.5 | B129: 19509.7126 | C129: -1
A130: 57 | B130: 19509.7126 | C130: -1
A131: 57.5 | B131: 19509.7126 | C131: -1
A132: 58 | B132: 19509.7126 | C132: -1
A133: 58.5 | B133: 19509.7126 | C133: -1
A134: 59 | B134: 19509.7126 | C134: -1
A135: 59.5 | B135: 19509.7126 | C135: -1
A136: 60 | B136: 19509.7126 | C136: -1
A137: 60.5 | B137: 19509.7126 | C137: -1
A138: 61 | B138: 19509.7126 | C138: -1
A139: 61.5 | B139: 19509.7126 | C139: -1
A140: 62 | B140: 19509.7126 | C140: -1
A141: 62.5 | B141: 19509.7126 | C141: -1
A142: 63 | B142: 19509.7126 | C142: -1
A143: 63.5 | B143: 19509.7126 | C143: -1
A144: 64 | B144: 19509.7126 | C144: -1
A145: =$B$2+A144 -> 64.5 | B145: 19509.7126 | C145: -1
A146: 65 | B146: =IF( C146<0,B145, NewX(B145,$B$10,$B$7,$B$2) ) -> 19509.7126 | C146: =IF(C145<0,-1,NewY(C145,$B$10,$B$7,$B$3,A146,$B$2) ) -> -1
A147: 65.5 | B147: 19509.7126 | C147: -1
A148: 66 | B148: 19509.7126 | C148: -1
A149: 66.5 | B149: 19509.7126 | C149: -1
A150: 67 | B150: 19509.7126 | C150: -1
A151: 67.5 | B151: 19509.7126 | C151: -1
A152: 68 | B152: 19509.7126 | C152: -1
A153: 68.5 | B153: 19509.7126 | C153: -1
A154: 69 | B154: 19509.7126 | C154: -1
A155: 69.5 | B155: 19509.7126 | C155: -1
A156: 70 | B156: 19509.7126 | C156: -1
A157: 70.5 | B157: 19509.7126 | C157: -1
A158: 71 | B158: 19509.7126 | C158: -1
A159: 71.5 | B159: 19509.7126 | C159: -1
A160: 72 | B160: 19509.7126 | C160: -1
A161: 72.5 | B161: 19509.7126 | C161: -1
A162: 73 | B162: 19509.7126 | C162: -1
A163: 73.5 | B163: 19509.7126 | C163: -1
A164: 74 | B164: 19509.7126 | C164: -1
A165: 74.5 | B165: 19509.7126 | C165: -1
A166: 75 | B166: 19509.7126 | C166: -1
A167: 75.5 | B167: 19509.7126 | C167: -1
A168: 76 | B168: 19509.7126 | C168: -1
A169: 76.5 | B169: 19509.7126 | C169: -1
A170: 77 | B170: 19509.7126 | C170: -1
A171: 77.5 | B171: 19509.7126 | C171: -1
A172: 78 | B172: 19509.7126 | C172: -1
A173: 78.5 | B173: 19509.7126 | C173: -1
A174: 79 | B174: 19509.7126 | C174: -1
A175: 79.5 | B175: 19509.7126 | C175: -1
A176: 80 | B176: 19509.7126 | C176: -1
A177: 80.5 | B177: 19509.7126 | C177: -1
A178: 81 | B178: 19509.7126 | C178: -1
A179: 81.5 | B179: 19509.7126 | C179: -1
A180: 82 | B180: 19509.7126 | C180: -1
A181: 82.5 | B181: 19509.7126 | C181: -1
A182: 83 | B182: 19509.7126 | C182: -1
A183: 83.5 | B183: 19509.7126 | C183: -1
A184: 84 | B184: 19509.7126 | C184: -1
A185: 84.5 | B185: 19509.7126 | C185: -1
A186: 85 | B186: 19509.7126 | C186: -1
A187: 85.5 | B187: 19509.7126 | C187: -1
A188: 86 | B188: 19509.7126 | C188: -1
A189: 86.5 | B189: 19509.7126 | C189: -1
A190: 87 | B190: 19509.7126 | C190: -1
A191: 87.5 | B191: 19509.7126 | C191: -1
A192: 88 | B192: 19509.7126 | C192: -1
A193: 88.5 | B193: 19509.7126 | C193: -1
A194: 89 | B194: 19509.7126 | C194: -1
A195: 89.5 | B195: 19509.7126 | C195: -1
A196: 90 | B196: 19509.7126 | C196: -1
A197: 90.5 | B197: 19509.7126 | C197: -1
A198: 91 | B198: 19509.7126 | C198: -1
A199: 91.5 | B199: 19509.7126 | C199: -1
A200: 92 | B200: 19509.7126 | C200: -1
A201: 92.5 | B201: 19509.7126 | C201: -1
A202: 93 | B202: 19509.7126 | C202: -1
A203: 93.5 | B203: 19509.7126 | C203: -1
A204: 94 | B204: 19509.7126 | C204: -1
... 596 more rows

Sheet Life
O1: Generation
A5: Current | B5: 0 | C5: 0 | D5: 0 | E5: 0 | F5: 0 | G5: 0 | H5: 0 | I5: 0 | J5: 0 | K5: 0 | L5: 0 | M5: 0 | O5: 0
A6: Generation | B6: 0 | C6: 0 | D6: 0 | E6: 0 | F6: 0 | G6: 0 | H6: 0 | I6: 0 | J6: 0 | K6: 0 | L6: 0 | M6: 0
B7: 0 | C7: 0 | D7: 0 | E7: 0 | F7: 0 | G7: 0 | H7: 0 | I7: 0 | J7: 0 | K7: 0 | L7: 0 | M7: 0
B8: 0 | C8: 0 | D8: 0 | E8: 0 | F8: 0 | G8: 0 | H8: 0 | I8: 0 | J8: 0 | K8: 0 | L8: 0 | M8: 0 | R8: Updates/Press | S8: 4
B9: 0 | C9: 0 | D9: 0 | E9: 0 | F9: 0 | G9: 0 | H9: 0 | I9: 0 | J9: 0 | K9: 0 | L9: 0 | M9: 0 | R9: (Value in S8)
B10: 0 | C10: 0 | D10: 0 | E10: 0 | F10: 0 | G10: 0 | H10: 0 | I10: 0 | J10: 0 | K10: 0 | L10: 0 | M10: 0
B11: 0 | C11: 0 | D11: 0 | E11: 0 | F11: 0 | G11: 0 | H11: 0 | I11: 0 | J11: 0 | K11: 0 | L11: 0 | M11: 0
B12: 0 | C12: 0 | D12: 0 | E12: 0 | F12: 0 | G12: 0 | H12: 0 | I12: 0 | J12: 0 | K12: 0 | L12: 0 | M12: 0
B13: 0 | C13: 0 | D13: 0 | E13: 0 | F13: 0 | G13: 0 | H13: 0 | I13: 0 | J13: 0 | K13: 0 | L13: 0 | M13: 0
B14: 0 | C14: 0 | D14: 0 | E14: 0 | F14: 0 | G14: 0 | H14: 0 | I14: 0 | J14: 0 | K14: 0 | L14: 0 | M14: 0
B15: 0 | C15: 0 | D15: 0 | E15: 0 | F15: 0 | G15: 0 | H15: 0 | I15: 0 | J15: 0 | K15: 0 | L15: 0 | M15: 0
A18: Count of Live | B18: 0 | C18: 0 | D18: 0 | E18: 0 | F18: 0 | G18: 0 | H18: 0 | I18: 0 | J18: 0 | K18: 0 | L18: 0 | M18: 0
A19: Neigbhors | B19: 0 | C19: =SUM(B5:D7)-C6 -> 0 | D19: 0 | E19: 0 | F19: 0 | G19: 0 | H19: 0 | I19: 0 | J19: 0 | K19: 0 | L19: 0 | M19: 0
A20: in Top Rectangle | B20: 0 | C20: =SUM(B6:D8)-C7 -> 0 | D20: 0 | E20: 0 | F20: 0 | G20: 0 | H20: 0 | I20: 0 | J20: 0 | K20: 0 | L20: 0 | M20: 0
B21: 0 | C21: =SUM(B7:D9)-C8 -> 0 | D21: 0 | E21: 0 | F21: 0 | G21: 0 | H21: 0 | I21: 0 | J21: 0 | K21: 0 | L21: 0 | M21: 0
B22: 0 | C22: =SUM(B8:D10)-C9 -> 0 | D22: 0 | E22: 0 | F22: 0 | G22: 0 | H22: 0 | I22: 0 | J22: 0 | K22: 0 | L22: 0 | M22: 0
B23: 0 | C23: =SUM(B9:D11)-C10 -> 0 | D23: 0 | E23: 0 | F23: 0 | G23: 0 | H23: 0 | I23: 0 | J23: 0 | K23: 0 | L23: 0 | M23: 0
B24: 0 | C24: =SUM(B10:D12)-C11 -> 0 | D24: 0 | E24: 0 | F24: 0 | G24: 0 | H24: 0 | I24: 0 | J24: 0 | K24: 0 | L24: 0 | M24: 0
B25: 0 | C25: =SUM(B11:D13)-C12 -> 0 | D25: 0 | E25: 0 | F25: 0 | G25: 0 | H25: 0 | I25: 0 | J25: 0 | K25: 0 | L25: 0 | M25: 0
B26: 0 | C26: =SUM(B12:D14)-C13 -> 0 | D26: 0 | E26: 0 | F26: 0 | G26: 0 | H26: 0 | I26: 0 | J26: 0 | K26: 0 | L26: 0 | M26: 0
B27: 0 | C27: =SUM(B13:D15)-C14 -> 0 | D27: 0 | E27: 0 | F27: 0 | G27: 0 | H27: 0 | I27: 0 | J27: 0 | K27: 0 | L27: 0 | M27: 0
B28: 0 | C28: 0 | D28: 0 | E28: 0 | F28: 0 | G28: 0 | H28: 0 | I28: 0 | J28: 0 | K28: 0 | L28: 0 | M28: 0
A31: Next | B31: 0 | C31: 0 | D31: 0 | E31: 0 | F31: 0 | G31: 0 | H31: 0 | I31: 0 | J31: 0 | K31: 0 | L31: 0 | M31: 0 | O31: =O5+1 -> 1
A32: Generation | B32: 0 | C32: =IF( OR(C19=3,AND(C6=1,C19=2)), 1, 0) -> 0 | D32: 0 | E32: 0 | F32: 0 | G32: 0 | H32: 0 | I32: 0 | J32: 0 | K32: 0 | L32: 0 | M32: 0
B33: 0 | C33: =IF( OR(C20=3,AND(C7=1,C20=2)), 1, 0) -> 0 | D33: 0 | E33: 0 | F33: 0 | G33: 0 | H33: 0 | I33: 0 | J33: 0 | K33: 0 | L33: 0 | M33: 0
B34: 0 | C34: =IF( OR(C21=3,AND(C8=1,C21=2)), 1, 0) -> 0 | D34: 0 | E34: 0 | F34: 0 | G34: 0 | H34: 0 | I34: 0 | J34: 0 | K34: 0 | L34: 0 | M34: 0
B35: 0 | C35: =IF( OR(C22=3,AND(C9=1,C22=2)), 1, 0) -> 0 | D35: 0 | E35: 0 | F35: 0 | G35: 0 | H35: 0 | I35: 0 | J35: 0 | K35: 0 | L35: 0 | M35: 0
B36: 0 | C36: =IF( OR(C23=3,AND(C10=1,C23=2)), 1, 0) -> 0 | D36: 0 | E36: 0 | F36: 0 | G36: 0 | H36: 0 | I36: 0 | J36: 0 | K36: 0 | L36: 0 | M36: 0
B37: 0 | C37: =IF( OR(C24=3,AND(C11=1,C24=2)), 1, 0) -> 0 | D37: 0 | E37: 0 | F37: 0 | G37: 0 | H37: 0 | I37: 0 | J37: 0 | K37: 0 | L37: 0 | M37: 0
B38: 0 | C38: =IF( OR(C25=3,AND(C12=1,C25=2)), 1, 0) -> 0 | D38: 0 | E38: 0 | F38: 0 | G38: 0 | H38: 0 | I38: 0 | J38: 0 | K38: 0 | L38: 0 | M38: 0
B39: 0 | C39: =IF( OR(C26=3,AND(C13=1,C26=2)), 1, 0) -> 0 | D39: 0 | E39: 0 | F39: 0 | G39: 0 | H39: 0 | I39: 0 | J39: 0 | K39: 0 | L39: 0 | M39: 0
B40: 0 | C40: =IF( OR(C27=3,AND(C14=1,C27=2)), 1, 0) -> 0 | D40: 0 | E40: 0 | F40: 0 | G40: 0 | H40: 0 | I40: 0 | J40: 0 | K40: 0 | L40: 0 | M40: 0
B41: 0 | C41: 0 | D41: 0 | E41: 0 | F41: 0 | G41: 0 | H41: 0 | I41: 0 | J41: 0 | K41: 0 | L41: 0 | M41: 0
